bitfinex/quotes_BTCUSD_20241119
["timestamp","ask_amount","ask_price","bid_price","bid_amount"]
[1732041060236,0.13206255,93535.0,93534.0,0.010691]
[1732041060453,0.04406255,93535.0,93487.0,0.0498]
[1732041060696,0.0166,93536.0,93521.0,0.010692]
[1732041060697,0.10906255,93522.0,93521.0,0.010692]
[1732041061160,0.10906255,93522.0,93519.0,0.010692]
[1732041061392,0.10906255,93522.0,93521.0,0.010692]
[1732041061855,0.10906255,93522.0,93512.0,0.010693]
[1732041062075,0.10906255,93519.0,93518.0,0.010693]
[1732041062520,0.10906255,93519.0,93495.0,0.0013029]
[1732041062521,0.023,93518.0,93495.0,0.0013029]
[1732041062776,0.10906255,93506.0,93502.0,0.010694]
[1732041062994,0.06040966,93536.0,93495.0,0.0013029]
[1732041062995,0.10906255,93503.0,93495.0,0.0013029]
[1732041063274,0.21385,93524.0,93465.0,0.012411]
[1732041063275,0.0166,93494.0,93465.0,0.001712]
[1732041063496,0.10906255,93486.0,93465.0,0.001712]
[1732041063943,0.002,93547.0,93467.0,0.01]
[1732041063944,0.0164,93527.0,93467.0,0.01]
[1732041064163,0.10906255,93520.0,93482.0,0.01]
[1732041064388,0.10906255,93520.0,93483.0,0.11906255]
[1732041064625,0.0626,93528.0,93492.0,0.1]
[1732041064626,0.10906255,93519.0,93492.0,0.1]
[1732041065288,0.10906255,93519.0,93492.0,0.01]
[1732041065516,0.01115187,93539.0,93492.0,0.01]
[1732041065517,0.01115187,93539.0,93498.0,0.0814]
[1732041065732,0.10906255,93537.0,93498.0,0.0814]
[1732041066397,0.10906255,93524.0,93494.0,0.1]
[1732041066623,0.10906255,93524.0,93487.0,0.01]
[1732041066856,0.10906255,93524.0,93484.0,0.01]
[1732041067083,0.10906255,93524.0,93487.0,0.01]
[1732041067299,0.10906255,93524.0,93487.0,0.11906255]
[1732041067523,0.0626,93547.0,93498.0,0.01]
[1732041067733,0.10906255,93546.0,93501.0,0.01]
[1732041067946,0.10906255,93543.0,93500.0,0.1]
[1732041068162,0.10906255,93542.0,93510.0,0.1]
[1732041068836,0.10906255,93542.0,93493.0,0.01]
[1732041068837,0.10906255,93542.0,93498.0,0.01]
[1732041069057,0.10906255,93542.0,93507.0,0.01]
[1732041069289,0.10906255,93542.0,93526.0,0.1]
[1732041070177,0.10906255,93542.0,93518.0,0.0807]
[1732041071527,0.10906255,93542.0,93517.0,0.1]
[1732041072218,0.10906255,93542.0,93509.0,0.01]
[1732041072424,0.10906255,93542.0,93507.0,0.04368114]
[1732041072642,0.213779,93555.0,93504.0,0.1]
[1732041072643,0.10906255,93539.0,93504.0,0.1]
[1732041073113,0.10906255,93539.0,93505.0,0.10906255]
[1732041073330,0.10906255,93539.0,93510.0,0.01]
[1732041074263,0.0004,93579.0,93524.0,0.01]
[1732041074486,0.10906255,93559.0,93524.0,0.01]
[1732041074695,0.0202992,93551.0,93524.0,0.01]
[1732041074904,0.12936175,93551.0,93524.0,0.01]
[1732041075112,0.12936175,93551.0,93489.0,0.01]
[1732041075113,0.0202992,93551.0,93532.0,0.01]
[1732041075355,0.30780598,93560.0,93533.0,0.0453]
[1732041075581,0.10906255,93559.0,93542.0,0.1]
[1732041076449,0.10906255,93559.0,93533.0,0.0453]
[1732041078006,0.10906255,93556.0,93513.0,0.0489]
[1732041078302,0.10906255,93551.0,93513.0,0.0489]
[1732041079764,0.10906255,93546.0,93513.0,0.0489]
[1732041080008,0.106901,93544.0,93513.0,0.0489]
[1732041080226,0.10906255,93536.0,93513.0,0.0489]
[1732041080431,0.10906255,93536.0,93503.0,0.0805]
[1732041081326,0.10906255,93521.0,93492.0,0.0494]
[1732041081771,0.10906255,93521.0,93492.0,0.09175788]
[1732041081979,0.10906255,93517.0,93492.0,0.0494]
[1732041082421,0.10906255,93517.0,93492.0,0.04928797]
[1732041083859,0.10906255,93517.0,93493.0,0.00113359]
[1732041084098,0.10906255,93517.0,93492.0,0.04928797]
[1732041084341,0.10906255,93517.0,93516.0,0.010693]
[1732041085577,0.31800498,93560.0,93559.0,0.010688]
[1732041085829,0.42706753,93560.0,93559.0,0.010688]
[1732041086085,0.42706753,93560.0,93549.0,0.010689]
[1732041086333,0.10906255,93558.0,93549.0,0.010689]
[1732041086567,0.10906255,93550.0,93530.0,0.1]
[1732041086798,0.10906255,93531.0,93481.0,0.0476]
[1732041087029,0.09000626,93549.0,93481.0,0.0476]
[1732041087030,0.10906255,93524.0,93523.0,0.010692]
[1732041088202,0.10906255,93524.0,93520.0,0.010692]
[1732041088203,0.10906255,93524.0,93488.0,0.04258938]
[1732041088442,0.10906255,93524.0,93522.0,0.010692]
[1732041088929,0.10906255,93524.0,93519.0,0.010692]
[1732041089173,0.10906255,93524.0,93520.0,0.010692]
[1732041089390,0.10906255,93524.0,93521.0,0.010692]
[1732041089889,0.10906255,93524.0,93521.0,0.021384]
[1732041090104,0.10906255,93524.0,93523.0,0.010692]
[1732041090317,0.02106255,93524.0,93523.0,0.010692]
[1732041091008,0.02106255,93524.0,93519.0,0.010692]
[1732041091009,0.02106255,93524.0,93518.0,0.010693]
[1732041091231,0.02106255,93524.0,93507.0,0.010694]
[1732041091470,0.02106255,93524.0,93513.0,0.010693]
[1732041091689,0.213843,93527.0,93507.0,0.010694]
[1732041091690,0.10906255,93518.0,93507.0,0.010694]
[1732041091920,0.106935,93515.0,93504.0,0.010694]
[1732041092181,0.023,93521.0,93498.0,0.010695]
[1732041092182,0.106943,93508.0,93498.0,0.010695]
[1732041092409,0.106946,93506.0,93495.0,0.010695]
[1732041092649,0.023,93521.0,93487.0,0.0017136]
[1732041092650,0.10906255,93500.0,93487.0,0.0017136]
[1732041092871,0.10906255,93490.0,93487.0,0.0017136]
[1732041094193,0.01115566,93495.0,93487.0,0.0017136]
[1732041094194,0.01115566,93495.0,93494.0,0.010695]
[1732041094405,0.12021821,93495.0,93494.0,0.010695]
[1732041094627,0.10906255,93495.0,93494.0,0.010695]
[1732041094847,0.0426791,93537.0,93491.0,0.010696]
[1732041094848,0.01115437,93523.0,93514.0,0.010693]
[1732041095072,0.10906255,93517.0,93491.0,0.010696]
[1732041095354,0.10906255,93515.0,93512.0,0.010693]
[1732041095593,0.023,93512.0,93487.0,0.0017136]
[1732041095842,0.01115437,93523.0,93487.0,0.0017136]
[1732041095843,0.10906255,93510.0,93487.0,0.0017136]
[1732041096279,0.10906255,93501.0,93487.0,0.0017136]
[1732041096496,0.10906255,93501.0,93500.0,0.010695]
[1732041100591,0.10906255,93501.0,93487.0,0.0017136]
[1732041100812,0.10906255,93491.0,93487.0,0.0017136]
[1732041101276,0.023,93487.0,93465.0,0.001712]
[1732041101533,0.10906255,93480.0,93468.0,0.010698]
[1732041101743,0.10906255,93480.0,93465.0,0.001712]
[1732041101744,0.10906255,93480.0,93474.0,0.010698]
[1732041101964,0.10906255,93480.0,93466.0,0.0124112]
[1732041102202,0.10906255,93471.0,93465.0,0.001712]
[1732041102408,0.10906255,93467.0,93465.0,0.001712]
[1732041102626,0.023,93487.0,93438.0,0.0484]
[1732041102627,0.10906255,93466.0,93458.0,0.010699]
[1732041102947,0.10906255,93466.0,93455.0,0.0107]
[1732041103159,0.10906255,93464.0,93450.0,0.0107]
[1732041103368,0.10906255,93464.0,93458.0,0.010699]
[1732041103585,0.10906255,93460.0,93449.0,0.0107]
[1732041103789,0.10906255,93450.0,93443.0,0.010701]
[1732041103991,0.10906255,93447.0,93438.0,0.010702]
[1732041104197,0.10906255,93447.0,93446.0,0.010701]
[1732041104832,0.10906255,93447.0,93431.0,0.0004]
[1732041104833,0.5483,93484.0,93435.0,0.01]
[1732041105038,0.10906255,93482.0,93455.0,0.0484]
[1732041105271,0.02106255,93482.0,93481.0,0.010697]
[1732041105506,0.0729,93532.0,93464.0,0.01]
[1732041105716,0.10906255,93512.0,93469.0,0.01]
[1732041105941,0.10906255,93512.0,93471.0,0.075]
[1732041106150,0.0165,93554.0,93522.0,0.010692]
[1732041106394,0.32000498,93560.0,93522.0,0.010692]
[1732041106395,0.31800498,93560.0,93522.0,0.010692]
[1732041106603,0.31800498,93560.0,93523.0,0.010692]
[1732041106867,0.01115322,93546.0,93523.0,0.010692]
[1732041107091,0.31800498,93560.0,93523.0,0.010692]
[1732041107301,0.01115232,93549.0,93523.0,0.010692]
[1732041107536,0.01115232,93549.0,93548.0,0.010689]
[1732041107941,0.0004,93559.0,93558.0,0.010688]
[1732041108459,0.0004,93559.0,93558.0,0.059888]
[1732041109528,0.31800498,93560.0,93559.0,0.130688]
[1732041109768,0.31800498,93560.0,93559.0,0.23975055]
[1732041110007,0.25387398,93560.0,93559.0,0.23975055]
[1732041110239,0.10439698,93560.0,93559.0,0.23975055]
[1732041110465,0.04026598,93560.0,93559.0,0.23975055]
[1732041110678,9.8e-07,93560.0,93559.0,0.22975055]
[1732041110921,9.8e-07,93560.0,93559.0,0.23975055]
[1732041111147,0.0005,93577.0,93570.0,0.020687]
[1732041111366,5.3e-07,93572.0,93570.0,0.23963182]
[1732041111600,7.61660085,93574.0,93573.0,0.02056827]
[1732041111817,7.59522785,93574.0,93573.0,0.22963082]
[1732041112499,7.55248185,93574.0,93573.0,0.22963082]
[1732041112709,7.48836285,93574.0,93573.0,0.23963082]
[1732041112930,7.23216285,93574.0,93573.0,0.23963082]
[1732041113413,7.06131685,93574.0,93573.0,0.39747682]
[1732041113676,6.99719785,93574.0,93573.0,0.26163082]
[1732041114092,6.99719785,93574.0,93573.0,0.25083311]
[1732041114619,6.99719785,93574.0,93573.0,0.15083311]
[1732041114847,6.99719785,93574.0,93573.0,0.132]
[1732041115077,6.85955001,93574.0,93573.0,0.22106255]
[1732041115508,6.75268501,93574.0,93573.0,0.22106255]
[1732041115996,6.75268501,93574.0,93573.0,0.21106255]
[1732041116210,6.55334141,93574.0,93573.0,0.66752864]
[1732041116428,6.49393228,93574.0,93573.0,1.06304464]
[1732041116640,6.42981328,93574.0,93573.0,0.45530264]
[1732041116879,6.42981328,93574.0,93573.0,0.45341166]
[1732041117114,6.42981328,93574.0,93573.0,0.47641166]
[1732041117551,6.32294828,93574.0,93573.0,0.47641166]
[1732041118444,6.30157528,93574.0,93573.0,0.47641166]
[1732041118667,6.25882928,93574.0,93573.0,0.47641166]
[1732041118909,6.21608328,93574.0,93573.0,0.47641166]
[1732041119167,6.21608328,93574.0,93573.0,0.47830264]
[1732041119384,6.05671028,93574.0,93573.0,0.47641166]
[1732041119618,5.97121828,93574.0,93573.0,0.47641166]
[1732041119837,5.87121828,93574.0,93573.0,0.47641166]
[1732041120269,5.78321828,93574.0,93573.0,0.47830264]
[1732041120477,5.74047228,93574.0,93573.0,0.47830264]
[1732041120951,5.67635328,93574.0,93573.0,0.47830264]
[1732041121135,5.67535328,93574.0,93573.0,0.24289566]
[1732041121344,5.65398028,93574.0,93573.0,0.72611564]
[1732041121557,5.56848828,93574.0,93573.0,0.54988164]
[1732041121794,5.56848828,93574.0,93573.0,0.54799066]
[1732041122583,5.54317803,93574.0,93573.0,0.54799066]
[1732041123047,5.47291775,93574.0,93573.0,0.54988164]
[1732041123256,5.39495469,93574.0,93573.0,0.54988164]
[1732041123541,5.28808969,93574.0,93573.0,0.54799066]
[1732041124161,5.28808969,93574.0,93573.0,0.54988164]
[1732041124409,5.28808969,93574.0,93573.0,0.54799066]
[1732041124881,5.24534369,93574.0,93573.0,0.54988164]
[1732041125112,5.20259769,93574.0,93573.0,0.54799066]
[1732041125348,5.20259769,93574.0,93573.0,0.54988164]
[1732041125349,5.16544966,93574.0,93573.0,0.54988164]
[1732041125569,5.03133018,93574.0,93573.0,0.54799066]
[1732041126473,4.97117818,93574.0,93573.0,0.52007366]
[1732041127618,4.97117818,93574.0,93573.0,0.52196464]
[1732041127842,4.97117818,93574.0,93573.0,0.51996256]
[1732041128293,4.92317536,93574.0,93573.0,1.05416256]
[1732041128513,4.91919661,93574.0,93573.0,1.05605354]
[1732041129124,4.91919661,93574.0,93573.0,1.55605354]
[1732041129348,4.91919661,93574.0,93573.0,0.99696256]
[1732041130057,4.91919661,93574.0,93573.0,0.21978456]
[1732041130301,4.91919661,93574.0,93573.0,2.07941156]
[1732041130516,4.91919661,93574.0,93573.0,1.43210854]
[1732041131163,4.91919661,93574.0,93573.0,1.43021756]
[1732041131405,4.88373288,93574.0,93573.0,1.96630854]
[1732041131650,4.88373288,93574.0,93573.0,0.88687554]
[1732041131894,4.88373288,93574.0,93573.0,0.88498456]
[1732041132127,4.88373288,93574.0,93573.0,3.22243656]
[1732041132363,4.88373288,93574.0,93573.0,4.05264756]
[1732041132609,4.88373288,93574.0,93573.0,3.43293156]
[1732041132830,4.88373288,93574.0,93573.0,3.32493156]
[1732041133046,4.88373288,93574.0,93573.0,3.32682254]
[1732041133266,4.88373288,93574.0,93573.0,3.02870754]
[1732041133481,4.88373288,93574.0,93573.0,2.99585454]
[1732041134202,4.88373288,93574.0,93573.0,2.92838154]
[1732041134689,4.88373288,93574.0,93573.0,2.92825421]
[1732041134903,4.84613018,93574.0,93573.0,2.92825421]
[1732041135134,4.83103018,93574.0,93573.0,2.81922521]
[1732041135367,4.74303018,93574.0,93573.0,2.81922521]
[1732041135606,4.70028418,93574.0,93573.0,2.81733423]
[1732041135846,4.63616518,93574.0,93573.0,2.81733423]
[1732041136067,4.63616518,93574.0,93573.0,2.81922521]
[1732041136326,4.63616518,93574.0,93573.0,4.17545539]
[1732041136544,4.55067318,93574.0,93573.0,4.4087082]
[1732041136756,4.55067318,93574.0,93573.0,4.5087082]
[1732041137229,4.55067318,93574.0,93573.0,3.19668522]
[1732041137477,4.55067318,93574.0,93573.0,3.1985762]
[1732041137478,4.52930018,93574.0,93573.0,3.1985762]
[1732041137962,4.44380818,93574.0,93573.0,3.4970762]
[1732041138182,4.44380818,93574.0,93573.0,3.4987882]
[1732041138396,4.40106218,93574.0,93573.0,3.5217882]
[1732041138611,4.33694318,93574.0,93573.0,3.5217882]
[1732041138845,4.33694318,93574.0,93573.0,3.51989722]
[1732041139059,4.33694318,93574.0,93573.0,3.75559722]
[1732041140200,4.33694318,93574.0,93573.0,3.64786025]
[1732041140414,4.33694318,93574.0,93573.0,3.66036025]
[1732041140658,4.33694318,93574.0,93573.0,3.75736025]
[1732041141131,4.33694318,93574.0,93573.0,3.75546927]
[1732041141402,4.33694318,93574.0,93573.0,3.75736025]
[1732041141630,4.33694318,93574.0,93573.0,3.75546927]
[1732041142104,4.33510218,93574.0,93573.0,3.75546927]
[1732041142331,4.33510218,93574.0,93573.0,2.46981525]
[1732041142559,4.33510218,93574.0,93573.0,5.10796227]
[1732041142785,3.26952678,93574.0,93573.0,4.48721222]
[1732041143009,3.26952678,93574.0,93573.0,2.88279624]
[1732041143245,3.26952678,93574.0,93573.0,2.39999865]
[1732041143462,3.26952678,93574.0,93573.0,2.42999865]
[1732041144015,3.26952678,93574.0,93573.0,2.37369965]
[1732041144645,3.26952678,93574.0,93573.0,2.37559063]
[1732041144888,3.26952678,93574.0,93573.0,2.50659101]
[1732041145153,3.26952678,93574.0,93573.0,3.00470003]
[1732041145311,3.26952678,93574.0,93573.0,3.02947732]
[1732041145569,3.26905878,93574.0,93573.0,3.02758634]
[1732041146015,3.26877678,93574.0,93573.0,3.56178634]
[1732041146458,3.26877678,93574.0,93573.0,3.53178634]
[1732041147366,3.22603078,93574.0,93573.0,3.57444334]
[1732041147598,3.14053878,93574.0,93573.0,3.57633432]
[1732041147903,3.14053878,93574.0,93573.0,3.57444334]
[1732041148584,3.06855078,93574.0,93573.0,2.72812996]
[1732041148800,3.06855078,93574.0,93573.0,2.64116196]
[1732041149021,3.06855078,93574.0,93573.0,2.14116196]
[1732041149245,3.06855078,93574.0,93573.0,2.14305294]
[1732041149931,3.06855078,93574.0,93573.0,2.14116196]
[1732041150153,3.06855078,93574.0,93573.0,2.24305294]
[1732041150405,3.01855077,93574.0,93573.0,2.24116196]
[1732041150625,3.01855077,93574.0,93573.0,2.14305294]
[1732041151522,3.01855077,93574.0,93573.0,0.50741367]
[1732041151747,3.01855077,93574.0,93555.0,0.3355]
[1732041151963,3.01855077,93574.0,93556.0,0.11006255]
[1732041152207,3.01855077,93574.0,93556.0,0.10906255]
[1732041152460,0.1232,93573.0,93556.0,0.10906255]
[1732041152634,0.13236689,93573.0,93556.0,0.10906255]
[1732041153389,0.1229,93573.0,93567.0,0.10906255]
[1732041153874,0.1229,93573.0,93551.0,0.00089098]
[1732041153875,0.1229,93573.0,93552.0,0.001]
[1732041154112,0.1229,93573.0,93553.0,0.10906255]
[1732041154594,0.00916689,93563.0,93540.0,0.13625281]
[1732041154798,0.05716689,93542.0,93524.0,0.001]
[1732041155014,0.048,93542.0,93528.0,0.10906255]
[1732041155239,0.048,93542.0,93524.0,0.10906255]
[1732041155473,0.00916689,93539.0,93524.0,0.10895363]
[1732041155701,0.048,93542.0,93524.0,0.10895363]
[1732041155930,0.00916689,93539.0,93524.0,0.10895363]
[1732041156359,0.0776,93538.0,93526.0,0.1]
[1732041156626,0.0776,93538.0,93528.0,0.1]
[1732041156627,0.0576,93538.0,93528.0,0.1]
[1732041156855,0.0576,93538.0,93529.0,0.10906255]
[1732041157573,0.10906255,93562.0,93529.0,0.10906255]
[1732041157574,0.00916689,93567.0,93529.0,0.10895412]
[1732041157800,3.01865979,93574.0,93534.0,0.10906255]
[1732041157801,0.00916689,93568.0,93534.0,0.10906255]
[1732041158290,0.00916689,93563.0,93535.0,0.1]
[1732041158536,0.00916689,93563.0,93536.0,0.10906255]
[1732041158781,3.01855077,93574.0,93548.0,0.1]
[1732041159005,3.01855077,93574.0,93561.0,0.1]
[1732041159202,3.01855077,93574.0,93561.0,0.09985475]
[1732041159203,0.00916689,93572.0,93561.0,0.09985475]
[1732041159404,3.01855077,93574.0,93561.0,0.09985475]
[1732041159663,3.01855077,93574.0,93565.0,0.01]
[1732041159889,3.01855077,93574.0,93573.0,0.00189098]
[1732041160106,3.01855077,93574.0,93548.0,0.001]
[1732041160369,3.01855077,93574.0,93522.0,0.5]
[1732041160370,3.01855077,93574.0,93561.0,0.10906255]
[1732041160604,3.01855077,93574.0,93563.0,0.10906255]
[1732041160849,3.01855077,93574.0,93563.0,0.10902255]
[1732041161283,3.01855077,93574.0,93563.0,0.10898255]
[1732041161499,3.01855077,93574.0,93566.0,0.10906255]
[1732041161713,3.01855077,93574.0,93567.0,0.09996]
[1732041161925,3.01832957,93574.0,93568.0,0.10895017]
[1732041162152,3.01832957,93574.0,93568.0,0.10891017]
[1732041162368,3.01832957,93574.0,93570.0,0.10906255]
[1732041162594,3.01832957,93574.0,93564.0,0.00996]
[1732041162595,3.01832957,93574.0,93572.0,0.10906255]
[1732041163041,3.01832957,93574.0,93572.0,0.10902255]
[1732041163532,3.01810837,93574.0,93572.0,0.10898255]
[1732041163756,3.01810837,93574.0,93572.0,0.10894255]
[1732041163985,3.01810837,93574.0,93573.0,0.09996]
[1732041164176,3.01810837,93574.0,93573.0,0.10906255]
[1732041164445,3.01810837,93574.0,93573.0,0.10902255]
[1732041164994,3.01810837,93574.0,93573.0,0.10898255]
[1732041165204,3.01810837,93574.0,93573.0,0.10887421]
[1732041165427,2.93010837,93574.0,93573.0,0.10887421]
[1732041166133,2.93010837,93574.0,93573.0,0.20887421]
[1732041166354,2.93010837,93574.0,93573.0,0.22072519]
[1732041166613,2.93010837,93574.0,93573.0,0.62072519]
[1732041166849,2.93010837,93574.0,93573.0,0.6215583]
[1732041167116,2.93010837,93574.0,93573.0,0.8286433]
[1732041167347,2.93010837,93574.0,93573.0,0.79408232]
[1732041168022,2.93010837,93574.0,93573.0,0.87461852]
[1732041168657,2.92999091,93574.0,93573.0,0.87461852]
[1732041168861,2.92449141,93574.0,93573.0,0.87461852]
[1732041169087,2.91125954,93574.0,93573.0,0.8995095]
[1732041169313,2.91125954,93574.0,93573.0,0.86958232]
[1732041170592,2.91125954,93574.0,93573.0,0.8484733]
[1732041170816,2.91125954,93574.0,93573.0,0.79408232]
[1732041171452,2.91125954,93574.0,93573.0,0.69514019]
[1732041171673,2.91115091,93574.0,93573.0,0.67640519]
[1732041172345,2.91115091,93574.0,93573.0,0.69708121]
[1732041172559,2.91115091,93574.0,93573.0,0.79708121]
[1732041172771,2.91115091,93574.0,93573.0,0.79791432]
[1732041172979,2.91115091,93574.0,93573.0,0.78201519]
[1732041173455,2.91115091,93574.0,93573.0,0.7828483]
[1732041173664,2.91104591,93574.0,93573.0,0.7845603]
[1732041174106,2.91104591,93574.0,93573.0,0.77376719]
[1732041174316,2.91104591,93574.0,93573.0,0.51058621]
[1732041175019,2.91104591,93574.0,93573.0,0.6411865]
[1732041175646,2.91104591,93574.0,93573.0,0.7411865]
[1732041175887,2.91093379,93574.0,93573.0,0.7411865]
[1732041176082,2.91093379,93574.0,93573.0,0.73951232]
[1732041176537,2.90608383,93574.0,93573.0,0.73951232]
[1732041176739,2.90068032,93574.0,93573.0,0.7414033]
[1732041176963,2.97978032,93574.0,93573.0,0.51247719]
[1732041177189,2.90046977,93574.0,93573.0,0.51415137]
[1732041177393,2.90046977,93574.0,93573.0,0.51247719]
[1732041177603,2.90046977,93574.0,93573.0,0.55515719]
[1732041177816,2.90046977,93574.0,93573.0,0.55326621]
[1732041178274,2.90046977,93574.0,93573.0,0.79597421]
[1732041178549,2.90046977,93574.0,93573.0,0.75329421]
[1732041178698,2.90046977,93574.0,93573.0,0.75412732]
[1732041178911,2.90046977,93574.0,93573.0,0.74140132]
[1732041179374,2.90046977,93574.0,93573.0,0.75136132]
[1732041179582,2.84051558,93574.0,93573.0,0.7532523]
[1732041180032,2.84051558,93574.0,93573.0,0.75136132]
[1732041180283,2.75251558,93574.0,93573.0,0.7532523]
[1732041180484,2.75251558,93574.0,93573.0,0.75136132]
[1732041181396,2.75251558,93574.0,93573.0,0.74056821]
[1732041181692,2.75251558,93574.0,93573.0,0.61247719]
[1732041181835,2.75251558,93574.0,93573.0,1.01375419]
[1732041182043,2.75251558,93574.0,93573.0,1.0145873]
[1732041182736,2.75251558,93574.0,93573.0,1.01269632]
[1732041183156,2.74674534,93574.0,93573.0,1.0145873]
[1732041183382,2.74674534,93574.0,93573.0,1.01269632]
[1732041185000,2.74674534,93574.0,93573.0,1.01375419]
[1732041185692,2.74674534,93574.0,93573.0,0.95798919]
[1732041186121,2.74592559,93574.0,93573.0,0.51247719]
[1732041186363,2.82872559,93574.0,93573.0,0.51247719]
[1732041186805,2.82872559,93574.0,93573.0,0.40360298]
[1732041187017,2.82872559,93574.0,93573.0,0.401712]
[1732041187457,2.83789248,93574.0,93573.0,0.401712]
[1732041187673,2.83789248,93574.0,93537.0,0.01114064]
[1732041187674,0.00916689,93556.0,93537.0,0.01114064]
[1732041187931,0.00916689,93556.0,93515.0,0.00083311]
[1732041188576,0.00916689,93556.0,93507.0,0.00083311]
[1732041188839,0.0114,93555.0,93525.0,0.00996]
[1732041189054,0.0114,93555.0,93526.0,0.10906255]
[1732041189055,0.00916689,93538.0,93526.0,0.10906255]
[1732041189266,0.00916689,93527.0,93508.0,0.00996]
[1732041189488,0.00916689,93525.0,93509.0,0.10906255]
[1732041189696,0.00916689,93525.0,93510.0,0.307062]
[1732041189946,0.00916689,93538.0,93511.0,0.32947255]
[1732041190187,0.00916689,93551.0,93515.0,0.10906255]
[1732041190398,0.00899489,93551.0,93522.0,0.10906255]
[1732041190604,0.00899489,93550.0,93523.0,0.814796]
[1732041190812,0.00899489,93550.0,93524.0,0.58083655]
[1732041191067,0.0779,93554.0,93492.0,0.0971]
[1732041191068,0.00899489,93525.0,93492.0,0.0971]
[1732041191267,0.00899489,93525.0,93509.0,0.10906255]
[1732041191693,0.0494,93541.0,93479.0,0.0017118]
[1732041191694,0.00899489,93516.0,93502.0,0.0027128]
[1732041191939,0.01,93531.0,93503.0,0.10906255]
[1732041191940,0.00899489,93514.0,93503.0,0.10906255]
[1732041192580,0.00899489,93511.0,93502.0,0.0027128]
[1732041193275,0.00899489,93510.0,93502.0,0.0027128]
[1732041194195,0.00899489,93527.0,93511.0,0.001]
[1732041194396,0.00899489,93530.0,93512.0,0.51544655]
[1732041194617,0.00899489,93534.0,93513.0,0.521821]
[1732041194839,0.00010902,93547.0,93527.0,0.001]
[1732041194840,0.00899489,93547.0,93527.0,0.001]
[1732041195051,0.00899489,93547.0,93529.0,0.1]
[1732041195325,0.01289489,93549.0,93531.0,0.1]
[1732041195612,0.00098045,93670.0,93562.0,0.1]
[1732041195613,0.01,93594.0,93562.0,0.1]
[1732041195850,7.317e-05,93597.0,93563.0,0.22731]
[1732041195851,2.73943433,93574.0,93563.0,0.22731]
[1732041196060,2.73943433,93574.0,93564.0,0.1]
[1732041196998,2.73943433,93574.0,93566.0,0.1]
[1732041197225,2.73943433,93574.0,93568.0,0.1]
[1732041197445,2.73943433,93574.0,93541.0,0.01]
[1732041197446,2.73331986,93574.0,93570.0,0.1]
[1732041198603,2.73331986,93574.0,93553.0,0.00996]
[1732041198827,2.73331986,93574.0,93558.0,0.1]
[1732041199052,2.73331986,93574.0,93553.0,0.00996]
[1732041199053,2.73331986,93574.0,93560.0,0.1]
[1732041200151,2.73331986,93574.0,93556.0,0.1]
[1732041200849,2.73331986,93574.0,93469.0,0.54939003]
[1732041200850,2.73331986,93574.0,93539.0,0.00996]
[1732041201071,2.73331986,93574.0,93510.0,0.01]
[1732041201072,2.73331986,93574.0,93540.0,0.10906255]
[1732041201303,0.13206255,93573.0,93551.0,0.01]
[1732041201530,0.00010902,93563.0,93551.0,0.01]
[1732041201780,2.73331986,93574.0,93511.0,0.001712]
[1732041201781,0.01,93546.0,93511.0,0.001712]
[1732041202003,0.0186,93562.0,93512.0,0.10906255]
[1732041202004,0.00010902,93554.0,93512.0,0.10906255]
[1732041202254,0.033,93550.0,93516.0,0.01]
[1732041202488,0.033,93548.0,93516.0,0.01]
[1732041202717,0.023,93546.0,93517.0,0.10906255]
[1732041202930,0.13206255,93546.0,93517.0,0.10906255]
[1732041203177,0.13206255,93546.0,93518.0,0.1]
[1732041203865,0.13206255,93546.0,93506.0,0.00996]
[1732041203866,0.01,93524.0,93476.0,0.01]
[1732041204090,0.01,93524.0,93505.0,0.10906255]
[1732041204315,0.01,93539.0,93506.0,1.319966]
[1732041204543,0.01,93539.0,93507.0,0.10906255]
[1732041204813,0.01,93539.0,93416.0,0.1121]
[1732041204814,0.13096255,93538.0,93506.0,0.10906255]
[1732041205003,0.14096255,93538.0,93506.0,0.10906255]
[1732041205480,0.002,93529.0,93476.0,0.01]
[1732041205774,0.14096255,93538.0,93483.0,0.10906255]
[1732041205871,0.023,93536.0,93484.0,0.1]
[1732041206109,0.01,93533.0,93486.0,0.1]
[1732041206342,0.01,93533.0,93466.0,0.05358974]
[1732041206343,0.002,93525.0,93487.0,0.28969755]
[1732041206575,0.01,93521.0,93488.0,0.214683]
[1732041206802,0.1346,93534.0,93491.0,0.10906255]
[1732041206803,0.1246,93534.0,93491.0,0.10906255]
[1732041207044,0.01,93527.0,93492.0,0.277581]
[1732041207286,0.002,93525.0,93475.0,0.0482]
[1732041207516,0.002,93525.0,93455.0,0.5]
[1732041207517,0.01,93520.0,93487.0,0.04239641]
[1732041207754,0.10906255,93519.0,93489.0,0.1]
[1732041207985,0.1246,93534.0,93489.0,0.1]
[1732041207986,0.01,93526.0,93491.0,0.1]
[1732041208210,0.01,93523.0,93493.0,0.1]
[1732041208459,0.01,93523.0,93495.0,0.1]
[1732041208682,0.01,93525.0,93497.0,0.1]
[1732041208914,0.01,93523.0,93499.0,0.1]
[1732041209623,0.1246,93534.0,93501.0,0.1]
[1732041209846,0.01,93531.0,93503.0,0.1]
[1732041210068,0.01,93545.0,93505.0,0.1]
[1732041210294,0.049,93551.0,93507.0,0.1]
[1732041210508,0.049,93551.0,93509.0,0.1]
[1732041210722,0.049,93551.0,93511.0,0.1]
[1732041211039,0.049,93551.0,93513.0,0.1]
[1732041211272,0.049,93551.0,93515.0,0.1]
[1732041211500,0.11906255,93550.0,93517.0,0.1]
[1732041211723,0.11906255,93550.0,93517.0,0.20906255]
[1732041212166,0.002,93549.0,93517.0,0.20906255]
[1732041212397,0.11906255,93550.0,93517.0,0.20906255]
[1732041212398,0.10906255,93548.0,93517.0,0.20906255]
[1732041212630,4e-05,93540.0,93517.0,0.20906255]
[1732041212860,4e-05,93540.0,93517.0,0.10906255]
[1732041213117,4e-05,93540.0,93518.0,0.43353255]
[1732041213308,4e-05,93540.0,93537.0,0.1]
[1732041213558,0.0004,93579.0,93539.0,0.1]
[1732041213781,2.66920086,93574.0,93547.0,0.01]
[1732041214006,2.66920086,93574.0,93549.0,0.1]
[1732041214235,2.66920086,93574.0,93553.0,0.1]
[1732041214467,2.66920086,93574.0,93555.0,0.1]
[1732041214698,0.10906255,93573.0,93555.0,0.1]
[1732041215201,0.01,93551.0,93496.0,0.5]
[1732041215424,0.01,93546.0,93516.0,0.10906255]
[1732041215667,0.11906255,93546.0,93516.0,0.10906255]